Cogmind - Beta 11.1 @@@ ROGUE MODE // 2022.07.03 @ 21:47:19 Player: Cyurio Result: Destroyed by G-50 Soldier with Heavy Laser Performance ------------- Evolutions (4) 2000 Regions Visited (9) 1800 Robots Destroyed (77) 385 Value Destroyed (2699) 2699 Prototype IDs (27) 540 Alien Tech Used (0) 0 Bonus (760) 760 TOTAL SCORE: 8184 Bonus ------- High Alert Combat Kills 70 Follower Combat Kills 510 Aligned with FarCom 300 Friendly Fire -120 Cogmind --------- Core Integrity 0/850 Matter 300/300 Energy 99/100 System Corruption 2% Temperature Cool (9) Movement Core (100) Ox1 Location -6/Extension Parts ------- > --- POWER (1) -------- (None) > --- PROPULSION (3) --- (None) > --- UTILITY (9) ------ Lightpack 2.0 Advanced Targeting Computer System Shield > --- WEAPON (2) ------- (None) > --- INVENTORY (40) --- Light Nuclear Core Carbon-fiber Leg Carbon-fiber Leg Carbon-fiber Leg VSS Leg VSS Leg Armored Leg Machine Analyzer Machine Analyzer Sensor Array Advanced Targeting Computer Recoil Stabilizer Microactuators Actuator Array Reaction Control System Long-range Tractor Beam Long-range Tractor Beam Advanced Beam Rifle Heavy Assault Rifle Heavy Assault Rifle High-powered Shotgun Enhanced Autogun Gauss Rifle Gauss Cannon Heavy Flak Cannon Rocket Launcher Mini Grenade Launcher Katana Katana Greatsword Phasing Sabre Spear Peak State ------------ > --- POWER ------------ Micro Nuclear Core > --- PROPULSION ------- Carbon-fiber Leg Carbon-fiber Leg Armored Leg > --- UTILITY ---------- Lightpack 2.0 Improved Sensor Array Improved Signal Interpreter Advanced Targeting Computer Advanced Targeting Computer Tractor Beam Long-range Tractor Beam > --- WEAPON ----------- Coil Gun Gauss Cannon > --- INVENTORY -------- Light Nuclear Core Carbon-fiber Leg Carbon-fiber Leg VSS Leg VSS Leg VSS Leg Armored Wheel VTOL Module Xenon Bombardment Thruster Advanced Weight Redist. System Machine Analyzer Machine Analyzer Sensor Array Advanced Targeting Computer Recoil Stabilizer Microactuators Actuator Array Reaction Control System Long-range Tractor Beam Advanced Beam Rifle Particle Cannon Heavy Assault Rifle Heavy Assault Rifle High-powered Shotgun Enhanced Autogun Gauss Rifle Assault Cannon Gauss Cannon Rocket Launcher Mini Grenade Launcher Katana Katana Greatsword Phasing Sabre Spear [Rating: 81] Favorites ----------- Power Light Ion Engine Engine Light Ion Engine Power Core Light Nuclear Core Propulsion Carbon-fiber Leg Treads Advanced Treads Leg Carbon-fiber Leg Wheel Compact Wheel Hover Unit Aerolev Unit Flight Unit Xenon Bombardment Thruster Utility Advanced Targeting Computer Device Sensor Array Storage Lightpack 2.0 Processor Advanced Targeting Computer Hackware Hacking Suite Weapon Assault Rifle Energy Gun Advanced Beam Rifle Ballistic Gun Assault Rifle Ballistic Cannon Assault Cannon Launcher Rocket Launcher Slashing Weapon Katana Build | -11 -10 -10 -10 -9 -8 -8 -7 -6 -6 ------- Run | Scr Mat Min Exi Min Mat Sto Fac Fac Ext Slots Evolved 8 | . . . . . 4 . 2 2 . Power . | . . . . . . . . . . Propulsion 1 | . . . . . . . 1 . . Utility 7 | . . . . . 4 . 1 2 . Weapon . | . . . . . . . . . . Parts Attached 87 | . 8 . . 1 16 24 16 6 16 Power 7 | . 1 . . . 2 2 1 1 . Engine 3 | . 1 . . . 1 . 1 . . Core 4 | . . . . . 1 2 . 1 . Reactor . | . . . . . . . . . . Propulsion 26 | . 4 . . . 4 5 6 2 5 Treads 1 | . . . . . . 1 . . . Leg 18 | . 3 . . . 4 4 3 2 2 Wheel 3 | . 1 . . . . . . . 2 Hover 3 | . . . . . . . 3 . . Flight 1 | . . . . . . . . . 1 Utility 17 | . 3 . . . 3 1 4 2 4 Device 8 | . 1 . . . . 1 1 2 3 Storage 3 | . 2 . . . 1 . . . . Processor 4 | . . . . . 1 . 3 . . Hackware 2 | . . . . . 1 . . . 1 Protection . | . . . . . . . . . . Artifact . | . . . . . . . . . . Weapon 37 | . . . . 1 7 16 5 1 7 Energy Gun 4 | . . . . . 1 3 . . . Energy Cannon . | . . . . . . . . . . Ballistic Gun 13 | . . . . . 5 7 . . 1 Ballistic Cannon 9 | . . . . . . 3 2 . 4 Launcher 3 | . . . . 1 1 . 1 . . Special Weapon . | . . . . . . . . . . Impact Weapon . | . . . . . . . . . . Slashing Weapon 8 | . . . . . . 3 2 1 2 Piercing Weapon . | . . . . . . . . . . Special Melee Weapon . | . . . . . . . . . . Unidentified Prototypes 2 | . . . . . 1 1 . . . Parts Lost 30 | . 1 . . . . 10 3 3 13 Power 6 | . 1 . . . . 2 1 1 1 Propulsion 8 | . . . . . . 3 1 1 3 Utility 9 | . . . . . . 1 1 1 6 Weapon 7 | . . . . . . 4 . . 3 Highest Loss Streak 5 | . 1 . . . . 3 3 3 5 To Critical Strikes . | . . . . . . . . . . Average Slot Usage (%) 82 | . 90 100 100 100 77 79 82 82 75 Engine 5 | . 13 14 14 14 7 . 5 4 . Core 3 | . . . . . . 8 1 1 5 Leg 16 | . 27 14 14 14 17 15 16 19 13 Wheel 2 | . . 14 14 14 . . . . 2 Device 11 | . 5 14 14 14 9 11 8 16 13 Storage 9 | . 14 14 14 14 9 9 7 6 6 Processor 10 | . . . . . 5 9 19 20 18 Hackware 2 | . . . . . 8 4 . . 2 Energy Gun 1 | . . . . . 5 4 . . . Ballistic Gun 10 | . 28 28 28 23 10 12 . . 1 Ballistic Cannon 3 | . . . . . . 1 12 11 2 Slashing Weapon 1 | . . . . . . . 2 1 4 Naked Turns . | . . . . . . . . . . Heaviest Build 28 | 12 28 28 28 28 17 21 23 28 28 Greatest Support 46 | 20 20 16 16 16 34 34 45 46 46 Greatest Overweight (x) 3 | . 1 1 1 1 . 1 1 . 3 Average Overweight (x) . | . . 1 1 1 . . . . . Largest Inventory Capacity 40 | . 15 15 15 15 40 40 40 40 40 Average Capacity 34 | . 8 15 15 15 40 40 40 40 40 Most Carried 40 | . 9 15 15 15 30 40 40 33 36 Average Carried 28 | . 7 13 14 15 21 36 34 31 33 Final Capacity 40 | 8 15 15 15 15 40 40 40 40 40 Final Carried 40 | 6 9 15 15 15 29 40 32 33 33 Class Distribution -------------------- 57% | Hauler-Skirmisher 20% | Mutant 9% | Hauler-Assassin 7% | Hauler-Mutant 3% | Hauler-Scout Dominant Class ---------------- Mutant | -10/Materials Mutant | -10/Mines Mutant | -10/Exiles Skirmisher | -9/Mines Hauler-Skirmisher | -8/Materials Hauler-Skirmisher | -8/Storage Hauler-Skirmisher | -7/Factory Hauler-Skirmisher | -6/Factory Hauler-Mutant | -6/Extension Resources | -11 -10 -10 -10 -9 -8 -8 -7 -6 -6 ----------- Run | Scr Mat Min Exi Min Mat Sto Fac Fac Ext Matter Collected 2289 | 172 155 80 . 10 305 596 154 184 633 Remotely 779 | . . . . . . . . 184 595 Salvage Created 2719 | . 252 23 . . 386 1171 145 139 603 Parts 159 | . 21 2 . . 21 66 12 12 25 Haulers Intercepted 2 | . . . . . . 2 . . . Recyclers Shooed . | . . . . . . . . . . Parts Field Recycled . | . . . . . . . . . . Retrieved Matter . | . . . . . . . . . . Parts Self-Destructed . | . . . . . . . . . . Prevented . | . . . . . . . . . . Kills | -11 -10 -10 -10 -9 -8 -8 -7 -6 -6 ------- Run | Scr Mat Min Exi Min Mat Sto Fac Fac Ext Combat Hostiles Destroyed 58 | . 7 . . . 9 26 3 5 8 Melee 7 | . . . . . . . 1 4 2 Guns 34 | . 7 . . . 4 22 . . 1 Cannons 12 | . . . . . . 4 2 1 5 AOE 4 | . . . . . 4 . . . . Classes Destroyed 15 | . 3 1 . . 5 4 2 . . Worker 2 | . . . . . 1 . 1 . . Builder 3 | . . . . . . 1 . . 2 Tunneler 1 | . . 1 . . . . . . . Hauler 2 | . . . . . . 2 . . . Recycler 2 | . . . . . 1 . . . 1 Operator 2 | . 1 . . . . . . . 1 Watcher 6 | . . . . . 1 1 2 1 1 Swarmer 13 | . 3 . . . 4 3 . 3 . Grunt 17 | . 4 . . . 1 10 . . 2 Brawler 4 | . . . . . . 1 . . 3 Duelist 2 | . . . . . . 2 . . . Sentry 14 | . . . . . 1 10 . . 3 Hunter 5 | . . . . . 3 . 1 1 . Programmer 2 | . . . . . . . 1 1 . Heavy 1 | . . . . . . . 1 . . Savage 1 | . . . . . . . . . 1 Best Kill Streak 6 | . 2 1 . . 6 4 2 3 3 Combat Bots Only 4 | . 2 . . . 4 3 1 3 3 Max Kills in Single Turn 2 | . 1 1 . . 2 2 1 1 2 Gunslinging 1 | . . . . . . 1 . . . Exploded 2 | . . . . . 2 . . . . Melee 1 | . . . . . . . 1 1 1 Uniques/NPCs Destroyed . | . . . . . . . . . . Combat | -11 -10 -10 -10 -9 -8 -8 -7 -6 -6 -------- Run | Scr Mat Min Exi Min Mat Sto Fac Fac Ext Damage Taken 5219 | . 234 54 . . 465 1498 456 557 1955 Core 1398 | . 52 . . . 69 291 119 61 806 Absorbed by Shields 6 | . . . . . . . . . 6 Core Remaining (%) 74 | 100 . . . 79 . 34 83 . . Volleys Fired 196 | . 19 3 . 4 19 96 15 11 29 Largest 2 | . 2 2 . 1 2 2 2 2 2 Hottest 101 | . 40 40 . 30 89 90 92 92 101 Shots Fired 361 | . 38 6 . 4 33 178 28 22 52 Gun 243 | . 38 6 . . 28 158 . . 13 Cannon 109 | . . . . . . 20 28 22 39 Launcher 9 | . . . . 4 5 . . . . Special . | . . . . . . . . . . Kinetic 317 | . 38 6 . . 17 154 28 22 52 Thermal 35 | . . . . . 11 24 . . . Explosive 9 | . . . . 4 5 . . . . Electromagnetic . | . . . . . . . . . . Robot Hit Streak 27 | . 10 4 . . 5 27 4 8 18 Robot Miss Streak 5 | . 4 1 . . 2 4 2 1 5 Penetration Max 2 | . . . . . . 1 . . 2 Secondary Targets 2 | . . . . . 1 1 . . . Max Gunslinging Chain 1 | . . . . . 1 1 . . . Shots Hit Robots 280 | . 23 4 . . 19 137 26 22 49 Core Hits 139 | . 14 2 . . 17 60 9 8 29 Critical Kills . | . . . . . . . . . . Critical Parts Destroyed 2 | . . . . . . 1 . . 1 Critical Strikes 14 | . . . . . 4 3 3 . 4 Burn 4 | . . . . . 4 . . . . Destroy 2 | . . . . . . 1 . . 1 Blast 7 | . . . . . . 1 3 . 3 Sever 1 | . . . . . . 1 . . . Melee Attacks 47 | . . . . . . 4 18 7 18 Impact . | . . . . . . . . . . Slashing 47 | . . . . . . 4 18 7 18 Piercing . | . . . . . . . . . . Sneak Attacks 2 | . . . . . . . 1 . 1 Combat Hostiles . | . . . . . . . . . . Follow-up Attacks . | . . . . . . . . . . Damage Inflicted 6584 | . 279 52 . . 648 2745 628 483 1749 Guns 3208 | . 279 52 . . 292 2195 . . 390 Cannons 1973 | . . . . . . 315 385 339 934 Explosions 633 | . . . . . 355 199 . . 79 Melee 736 | . . . . . . 31 243 130 332 Ramming 34 | . . . . . 1 5 . 14 14 Kinetic 4668 | . 279 52 . . 92 2197 385 339 1324 Thermal 592 | . . . . . 200 313 . . 79 Explosive 554 | . . . . . 355 199 . . . Electromagnetic . | . . . . . . . . . . Impact . | . . . . . . . . . . Slashing 736 | . . . . . . 31 243 130 332 Piercing . | . . . . . . . . . . Highest Corruption 2 | . . . . . . . 1 1 2 Average Corruption 1 | . . . . . . . 1 1 1 Corruption Purged . | . . . . . . . . . . Corruption Blocked . | . . . . . . . . . . Effects 15 | . . . . . . . 4 . 11 Message Errors 2 | . . . . . . . . . 2 Matter Fused 1 | . . . . . . . . . 1 Heat Flow Errors 2 | . . . . . . . . . 2 Energy Discharges 3 | . . . . . . . 2 . 1 Data Loss (minor) 3 | . . . . . . . 1 . 2 Data Loss (major) 1 | . . . . . . . . . 1 Misfires 1 | . . . . . . . . . 1 Alerts 1 | . . . . . . . 1 . . Weapon Failures 1 | . . . . . . . . . 1 Overload Shots . | . . . . . . . . . . Overflow Damage 267 | . . . . . 46 10 3 . 208 Projectiles 15 | . . . . . . 10 . . 5 Explosions 176 | . . . . . 46 . . . 130 Melee 76 | . . . . . . . 3 . 73 Knockbacks 9 | . . . . . . 5 2 . 2 Impact . | . . . . . . . . . . Kinetic 9 | . . . . . . 5 2 . 2 Secondary . | . . . . . . . . . . Self-Inflicted Damage 131 | . . . . . 14 . . . 117 Shots 2 | . . . . . 1 . . . 1 Rammed 1 | . . . . . . . . . 1 Targets Rammed 9 | . . . . . 1 1 . 6 1 Kicked 8 | . . . . . 1 1 . 6 . Crushed . | . . . . . . . . . . Highest Temperature 119 | . 20 2 . . 45 114 36 18 119 Average Temperature 22 | . 10 2 . . 20 27 16 8 25 Received Heat Transfer 1026 | . 72 33 . . 63 576 . . 282 Siege Activations . | . . . . . . . . . . Robots Corrupted . | . . . . . . . . . . Combat Hostiles . | . . . . . . . . . . Parts Fried . | . . . . . . . . . . Impact Corruptions . | . . . . . . . . . . Robots Melted 1 | . . . . . 1 . . . . Combat Hostiles 1 | . . . . . 1 . . . . Parts Melted 3 | . . . . . 1 2 . . . Heat Transferred 1419 | . . . . . 666 703 . . 50 Parts Sabotaged . | . . . . . . . . . . Parts Stolen . | . . . . . . . . . . Parts Stripped . | . . . . . . . . . . Power Chain Reactions . | . . . . . . . . . . Missiles Intercepted . | . . . . . . . . . . Alert | -11 -10 -10 -10 -9 -8 -8 -7 -6 -6 ------- Run | Scr Mat Min Exi Min Mat Sto Fac Fac Ext Peak Influence 546 | . 218 76 . 25 297 546 468 212 334 Initial 247 | . . 15 . . 9 5 247 19 5 Average 161 | . 115 21 . 4 119 183 249 59 219 Maximum Alert Level 2 | . 1 . . . 1 2 2 1 1 Low Security (%) 56 | . 71 100 . 100 75 48 35 95 26 Level 1 39 | . 28 . . . 24 42 55 4 73 Level 2 4 | . . . . . . 9 9 . . Level 3 . | . . . . . . . . . . Level 4 . | . . . . . . . . . . Level 5 . | . . . . . . . . . . High Security . | . . . . . . . . . . Max Security . | . . . . . . . . . . Squads Dispatched 18 | . 1 1 . . 2 3 4 2 5 Investigation 5 | . . . . . . . 1 1 3 Extermination 1 | . . . . . . . . 1 . Reinforcement 10 | . 1 . . . 2 2 3 . 2 Assault 1 | . . 1 . . . . . . . Garrison 1 | . . . . . . 1 . . . Intercept . | . . . . . . . . . . Searches Triggered . | . . . . . . . . . . Construction Impeded 2 | . . . . . 1 . . . 1 Haulers Reinforced . | . . . . . . . . . . Active Scanning Responses . | . . . . . . . . . . Cargo Convoy Interrupts . | . . . . . . . . . . Stealth | -11 -10 -10 -10 -9 -8 -8 -7 -6 -6 --------- Run | Scr Mat Min Exi Min Mat Sto Fac Fac Ext Distress Signals 8 | . 2 . . . 1 3 . . 2 Communications Jammed . | . . . . . . . . . . Distress Signals . | . . . . . . . . . . Times Spotted 119 | . 13 2 . 1 16 35 8 8 36 Peak Tracking Total 6 | . 4 2 . 5 5 4 2 4 6 Tactical Retreats 7 | . . . . 1 . . . 1 5 Traps | -11 -10 -10 -10 -9 -8 -8 -7 -6 -6 ------- Run | Scr Mat Min Exi Min Mat Sto Fac Fac Ext Traps Triggered 6 | . . . . . 2 2 . . 2 Indirectly . | . . . . . . . . . . Trap Hack Attempts . | . . . . . . . . . . Triggered . | . . . . . . . . . . Disarmed . | . . . . . . . . . . Reprogrammed . | . . . . . . . . . . Reused . | . . . . . . . . . . Traps Extracted . | . . . . . . . . . . Installed . | . . . . . . . . . . Triggered . | . . . . . . . . . . Exploded 1 | . . . 1 . . . . . . Machines | -11 -10 -10 -10 -9 -8 -8 -7 -6 -6 ---------- Run | Scr Mat Min Exi Min Mat Sto Fac Fac Ext Machines Disabled 12 | . . . . . 1 5 2 . 4 Max in Single Turn 4 | . . . . . 1 1 1 . 4 Garrison Access 3 | . . . . . . 1 2 . . Energy Cycler 1 | . . . . . . . . . 1 Machines Sabotaged . | . . . . . . . . . . Garrisons Compromised . | . . . . . . . . . . Overloaded Fab Kills . | . . . . . . . . . . Hacking | -11 -10 -10 -10 -9 -8 -8 -7 -6 -6 --------- Run | Scr Mat Min Exi Min Mat Sto Fac Fac Ext Machines Accessed 40 | . 3 1 1 1 2 10 8 5 9 Terminals 31 | . 3 . . . 2 9 4 4 9 Fabricators 1 | . . . . . . . 1 . . Repair Stations . | . . . . . . . . . . Recycling Units . | . . . . . . . . . . Scanalyzers 2 | . . . . . . . 1 1 . Garrison Access 3 | . . . . . . 1 2 . . Total Hacks 74 | . 5 1 1 1 4 19 16 9 18 Successful 41 | . 2 1 1 1 3 12 10 4 7 Failed 33 | . 3 . . . 1 7 6 5 11 Catastrophic 4 | . . . . . . . 2 . 2 Database Lockouts . | . . . . . . . . . . Manual 34 | . 3 . 1 . 2 11 7 6 4 Terminals 57 | . 5 . . . 4 16 7 7 18 Fabricators 1 | . . . . . . . 1 . . Repair Stations . | . . . . . . . . . . Recycling Units . | . . . . . . . . . . Scanalyzers 6 | . . . . . . . 4 2 . Garrison Access 7 | . . . . . . 3 4 . . Terminal Hacks 18 | . 1 1 1 1 1 7 . 1 5 Record 1 | . . . . . . . . . 1 Prototype ID Bank 1 | . . . . . 1 . . . . Open Door 9 | . . 1 . 1 . 3 . 1 3 Branch Access Points 1 | . 1 . . . . . . . . Emergency Access Points 1 | . . . . . . 1 . . . Alert Level 3 | . . . . . . 2 . . 1 Zone Layout 1 | . . . . . . 1 . . . EX-Prototype ID Bank 1 | . . . 1 . . . . . . Fabricator Hacks . | . . . . . . . . . . Repair Station Hacks . | . . . . . . . . . . Recycling Unit Hacks . | . . . . . . . . . . Scanalyzer 6 | . . . . . . . 4 2 . Insert Component 3 | . . . . . . . 2 1 . Analyze 3 | . . . . . . . 2 1 . Garrison Access Hacks 3 | . . . . . . 1 2 . . Seal Access 3 | . . . . . . 1 2 . . Unauthorized Hacks 14 | . 1 . . . 2 4 4 1 2 Terminals 13 | . 1 . . . 2 4 3 1 2 Track 1 | . . . . . . . 1 . . Botnet 12 | . 1 . . . 2 4 2 1 2 Fabricators 1 | . . . . . . . 1 . . Fabnet 1 | . . . . . . . 1 . . Repair Stations . | . . . . . . . . . . Recycling Units . | . . . . . . . . . . Scanalyzers . | . . . . . . . . . . Garrison Access . | . . . . . . . . . . Data Cores Recovered . | . . . . . . . . . . Used . | . . . . . . . . . . Hacking Detections 24 | . 2 . . . 2 7 4 3 6 Full Trace Events 4 | . . . . . . . 1 1 2 Feedback Events 2 | . . . . . . . 1 . 1 Corruption 2 | . . . . . . . 1 . 1 Feedback Blocked . | . . . . . . . . . . Robot Schematics Acquired . | . . . . . . . . . . Robots Built . | . . . . . . . . . . Authchips . | . . . . . . . . . . Time . | . . . . . . . . . . Total Robot Build Rating . | . . . . . . . . . . Part Schematics Acquired 3 | . . . . . . . 2 1 . Parts Built . | . . . . . . . . . . Authchips . | . . . . . . . . . . Time . | . . . . . . . . . . Total Part Build Rating . | . . . . . . . . . . Parts Repaired . | . . . . . . . . . . Time . | . . . . . . . . . . Parts Recycled . | . . . . . . . . . . Recycled Matter . | . . . . . . . . . . Retrieved Matter . | . . . . . . . . . . Retrieved Components . | . . . . . . . . . . Parts Scanalyzed 3 | . . . . . . . 2 1 . Part Schematics Acquired 3 | . . . . . . . 2 1 . Parts Damaged 1 | . . . . . . . 1 . . Bothacking | -11 -10 -10 -10 -9 -8 -8 -7 -6 -6 ------------ Run | Scr Mat Min Exi Min Mat Sto Fac Fac Ext Used RIF Installer . | . . . . . . . . . . Robots Hacked 3 | . . . . . . . . . 3 Non-combat . | . . . . . . . . . . Combat 3 | . . . . . . . . . 3 Robot Hacks Applied . | . . . . . . . . . . Relay Couplers Released . | . . . . . . . . . . Fabnet Peak Effective % 3 | . . . . . . . . 3 3 Autooverrided 3 | . . . . . . . . . 3 Robots Rewired 3 | . . . . . . . . . 3 Allies Hacked . | . . . . . . . . . . Hacks Repelled . | . . . . . . . . . . Allies | -11 -10 -10 -10 -9 -8 -8 -7 -6 -6 -------- Run | Scr Mat Min Exi Min Mat Sto Fac Fac Ext Total Allies 15 | . . 3 . . . . . . 12 Largest Group 6 | . . 3 3 1 . . . . 6 Highest-Rated Group 172 | . . 81 81 31 . . . . 172 Highest-Rated Ally 85 | . . 31 31 31 . . . . 85 Total Orders . | . . . . . . . . . . Ally Attacks 116 | . . 6 . 5 . . . . 105 Total Damage 2434 | . . 103 . 85 . . . . 2246 Kills 18 | . . 2 . 3 . . . . 13 Allies Corrupted 1 | . . . . . . . . . 1 Allies Melted 1 | . . . . 1 . . . . . Intel | -11 -10 -10 -10 -9 -8 -8 -7 -6 -6 ------- Run | Scr Mat Min Exi Min Mat Sto Fac Fac Ext Robot Analysis Total . | . . . . . . . . . . Derelict Logs Recovered 1 | . . 1 . . . . . . . Drone Launches . | . . . . . . . . . . Drone Recoveries . | . . . . . . . . . . Exploration | -11 -10 -10 -10 -9 -8 -8 -7 -6 -6 ------------- Run | Scr Mat Min Exi Min Mat Sto Fac Fac Ext Turns Passed 7440 | . 552 659 262 125 841 2209 1242 462 1088 Spaces Moved 4566 | 1 364 522 222 101 437 820 1027 307 765 Core 24 | . . . . . . . . . 24 Treads 225 | . . . . . . 225 . . . Legs 2475 | 1 347 . . . 437 595 495 307 293 Wheels 1305 | . 17 522 222 101 . . . . 443 Hover 532 | . . . . . . . 532 . . Flight 5 | . . . . . . . . . 5 Fastest Speed 40 | 120 115 115 115 115 120 120 42 120 40 Average Speed 111 | 120 119 115 115 115 126 133 79 120 109 Slowest Speed 200 | 120 120 115 115 115 130 190 120 120 200 Overloaded Moves . | . . . . . . . . . . Propulsion Burnouts . | . . . . . . . . . . Robots Hopped 1 | . . . . . . . . . 1 Cave-ins Triggered . | . . . . . . . . . . Exploration Rate (%) 42 | 2 61 90 61 21 21 90 23 10 50 Regions Visited 9 Branch Regions 5 Pre-discovered Areas . | . . . . . . . . . . Known Exits Taken 3 | . 1 . . . . . 1 1 . Unknown Exits Taken 6 | 1 . 1 1 1 1 1 . . . Scrap Searched 2 | . . 1 . 1 . . . . . Spaces Dug 33 | . . . . 23 . 1 6 . 3 Terrain Destroyed 116 | . . . . 45 26 10 8 6 21 Melee 10 | . . . . . . 1 6 . 3 Projectile 15 | . . . . . 1 . 2 6 6 AOE 91 | . . . . 45 25 9 . . 12 Terrain Rammed . | . . . . . . . . . . Walls Destroyed . | . . . . . . . . . . Machines Disabled . | . . . . . . . . . . Actions | -11 -10 -10 -10 -9 -8 -8 -7 -6 -6 --------- Run | Scr Mat Min Exi Min Mat Sto Fac Fac Ext Total 6498 | . 443 574 230 105 686 1757 1401 365 937 Wait 1471 | . 42 44 5 . 192 779 298 25 86 Move 4555 | . 363 521 221 100 436 819 1026 306 763 Hop 1 | . . . . . . . . . 1 Pick Up 82 | . 5 6 1 . 19 30 15 3 3 Fast Attach 15 | . 1 . . . 6 1 1 2 4 Attach 25 | . 1 . . . 2 12 4 2 4 Detach 8 | . . . . . 2 2 . . 4 Swap 47 | . 6 . . 1 8 11 11 2 8 Drop 26 | . 6 . 3 . 1 2 13 1 . Fire 196 | . 19 3 . 4 19 96 15 11 29 Melee 43 | . . . . . . 4 18 7 14 Ram 1 | . . . . . . . . . 1 Kick 8 | . . . . . 1 1 . 6 . Crush . | . . . . . . . . . . Escape Stasis 2 | . . . . . . . . . 2 Rewire 18 | . . . . . . . . . 18 Trap . | . . . . . . . . . . Miscellaneous . | . . . . . . . . . . Route ------- -11/Scrapyard -10/Materials (discovered 4 exits: [*Mat x2] / *Min x2) -10/Mines (discovered 3 exits: [*Mat x2] / *Exi) -10/Exiles -9/Mines -8/Materials -8/Storage (discovered 2 exits: *Fac / *Rec) -7/Factory (discovered 2 exits: *Fac x2) -6/Factory -6/Extension History --------- Turn | Location | Event 1 | -11/Scrapyard | Discovered new exit (range 0) 1 | -11/Scrapyard | Entered Materials 215 | -10/Materials | Discovered new exit (range 16) 304 | -10/Materials | Build established: Mutant 429 | -10/Materials | Discovered new exit (range 15) 517 | -10/Materials | Identified exit to Mines 553 | -10/Materials | Entered Mines 560 | -10/Mines | Received a Rocket Launcher from a helpful Derelict 721 | -10/Mines | Discovered new exit (range 15) 748 | -10/Mines | Met a Derelict who couldn't figure out how to use a Trap Extractor 997 | -10/Mines | Discovered new exit (range 7) 1187 | -10/Mines | Met a Derelict testing a Signal Generator 1197 | -10/Mines | Deemed a non-threat by the Exiles lab entrance 1197 | -10/Mines | Discovered new exit (range 5) 1212 | -10/Mines | Entered Exiles 1212 | -10/Exiles | Accompanied by 3 allies 1241 | -10/Exiles | Met 8R-AWN 1242 | -10/Exiles | Led the pair of lost Derelicts to a safe place 1261 | -10/Exiles | Met EX-HEX 1295 | -10/Exiles | Met EX-BIN 1315 | -10/Exiles | Aligned with FarCom system 1316 | -10/Exiles | Given EX-Vault access code 1342 | -10/Exiles | Opened EX-Vault 1357 | -10/Exiles | Found Lightpack 2.0 1383 | -10/Exiles | Warned to stay clear of 0b10 Research branches 1392 | -10/Exiles | Exiles lab attacked by MAIN.C 1458 | -10/Exiles | Discovered new exit (range 12) 1474 | -10/Exiles | Left Exiles lab with Lightpack 2.0 1474 | -10/Exiles | Entered Mines 1474 | -9/Mines | Accompanied by 1 ally 1503 | -9/Mines | Met a Derelict bent on vengeance 1523 | -9/Mines | Found the Drone Emporium 1549 | -9/Mines | Assembled infested the area 1590 | -9/Mines | Discovered new exit (range 9) 1599 | -9/Mines | Entered Materials 1599 | -8/Materials | Evolved 4 slots: Utility x4 1890 | -8/Materials | Build established: Hauler-Skirmisher 1906 | -8/Materials | Discovered new exit (range 7) 2440 | -8/Materials | Entered Storage 2441 | -8/Storage | Identified exit to Recycling 3533 | -8/Storage | Used back door to open Recycling access 4024 | -8/Storage | Core integrity fell below 50% 4167 | -8/Storage | Lost 3 parts (1p1n1w) 4494 | -8/Storage | Garrison activated, responded to threat 4595 | -8/Storage | Discovered new exit (range 12) 4649 | -8/Storage | Entered Factory 4649 | -7/Factory | Evolved 2 slots: Propulsion x1, Utility x1 4783 | -7/Factory | Discovered new exit (range 12) 4945 | -7/Factory | Discovered new exit (range 5) 4977 | -7/Factory | Lost 3 parts (1p1n1u) 5890 | -7/Factory | Identified exit to Factory 5891 | -7/Factory | Entered another Factory area 5891 | -6/Factory | Evolved 2 slots: Utility x2 6307 | -6/Factory | Lost 3 parts (1p1n1u) 6348 | -6/Factory | Discovered new exit (range 6) 6352 | -6/Factory | Identified exit to Extension 6353 | -6/Factory | Entered Extension 6516 | -6/Extension | Rescued a captive Derelict 6516 | -6/Extension | Rescued a captive Derelict 6623 | -6/Extension | Rescued a captive Derelict 6623 | -6/Extension | Rescued a captive Derelict 6715 | -6/Extension | Build established: Hauler-Assassin 6733 | -6/Extension | Rescued a captive Derelict 6836 | -6/Extension | Spotted B-75 Beast 6911 | -6/Extension | Lost 4 parts (1n1u2w) 6965 | -6/Extension | Energy Cycler disabled 6967 | -6/Extension | Rescued a captive Derelict 6968 | -6/Extension | Rescued a captive Derelict 6968 | -6/Extension | Rescued a captive Derelict 6977 | -6/Extension | Rescued a captive Derelict 6980 | -6/Extension | Rescued a captive Derelict 7427 | -6/Extension | Core integrity fell below 50% 7430 | -6/Extension | Spotted B-75 Beast 7439 | -6/Extension | Core integrity fell below 20% 7441 | -6/Extension | Destroyed by G-50 Soldier with Heavy Laser Last Messages --------------- VSS Leg swallowed by quantum anomaly within Lightpack 2.0. 07196_ System corrupted: Heat flow error (+147). 07198_ W-25 Informer sends out distress signal. 07199_ Adv. Weight Redist. System destroyed. 07199_ Adv. Targeting Computer destroyed. 07199_ Critical hit (Blast). 07223_ E078 TJJG%JEDAQKLVMH&%6 0WM 07279_ K-01 Serf enters Transfer Station. 07310_ Acquired 3 matter. 07350_ Acquired 33 matter. 07351_ Acquired 2 matter. 07426_ Knocked back. 07426_ Arm. Wheel destroyed. 07430_ Slug penetrates Wall. 07431_ Xenon Bombardment Thruster destroyed. 07433_ Penetrated by Slug. 07434_ Imp. Sensor Array destroyed. 07434_ Mic. Nuclear Core destroyed. 07439_ Penetrated by Slug. 07439_ Imp. Signal Interpreter destroyed. Map ----- +----------------------------------------------------+ | ^ == #?????????????????????????????????? | | = #?????????????????????????????????? | | #### #?????????????????????????????????? | | ???# ####??????????????????????????????? | | ???# ^ #??????????????????????????????? | | ???#""" #??????????????????????????????? | | ???#"Y #??????????????????????????????? | | ####""" % #??????????????????????????????? | | % #??????????????????????????????? | | ##T# %%% %#??????????????????????????????? | | ?############ % #??????????????????????????????? | | ????????????##### #??????????????????????????????? | | ???????????????## #??????????????????????????????? | | ????????????????# #??????????????????????????????? | | ????????????????# #??????????????????????????????? | | ???????????????## #??????????????????????????????? | | ???????????????##%#??????????????????????????????? | | ???????????????## #??????????????????????????????? | | ???????????????##%#??????????????????????????????? | | ????????????????# #??????????????????????????????? | | ????????????????#%#??????????????????????????????? | | ????????????????#%#??????????????????????????????? | | ???????????????##%#??????????????????????????????? | | ???????????????##%#?######???????????????????????? | | ??????????????###%### ## ###%###?????????????????? | | ?????????????##" h @ $#?????????????????? | | ?????????????#; % %% #?????????????????? | | ?????????????## #?????????????????? | | ??????????????# #?????????????????? | | ############### #?????????????????? | | g % ???????g????????? | | % gg % ????g?????????? | | % ?????????????? | | % A % ????????????? | | ktuBBu k R A???????????? | | ####"######"### BB BB ######????????????? | | ???###????##??# %BB % #?????????????????? | | ??????????????# % % #?????????????????? | | ??????????????# #?????????????????? | | ??????????????# ???????????????????? | | ??????????????######T# ###?????????????????????? | | ?????????????????????????????????????????????????? | | ?????????????????????????????????????????????????? | | | | | | | | | | | | | | | +----------------------------------------------------+ Best States ------------- Heat Dissipation 37 Energy Generation 15 Energy Capacity 240 Matter Stores 300 Matter Capacity 300 Sight Range 16 Robot Scan Range 15 Terrain Scan Density 10 Evasion (%) 56 Targeting Accuracy 16 Target Analysis 5 Recoil Reduction 1 Kinecelleration 30 Offensive Hacking 10 Defensive Hacking 10 Item Schematics ----------------- Adv. Weight Redist. System | -7/Factory | Scanalyzed Core Analyzer | -7/Factory | Scanalyzed Gauss Rifle | -6/Factory | Scanalyzed Robot Schematics ------------------ None Fabricated ------------ Nothing Alien Tech Used ----------------- None Achievements -------------- Packrat Challenges ------------ None Game ------ Seed FireDeepPerforator Manual? 0 Play Time 01:01:19 Cumulative 66.6 hours Start 2022.07.03 @ 20:13:25 End 2022.07.03 @ 21:47:19 Sessions 1 Manual Loads 0 Difficulty Rogue Special Mode None Game No. 100 Rogue 100 Adventurer 0 Explorer 0 Win Type - Total 1 Types 1/0/0/0/0/0/0/0/0 Lore% 38 Gallery% 41 Achievement% 35 Wizard Run 0 Options --------- ASCII 0 Keyboard 1 Movement Vi Keybinds 1 Fullscreen 1 Font 24/Smallcaps Map View 76x50 Tactical HUD 1 Map Filters NONE Filters NONE Steam 1 RUN: 8792c3d4-680b-46df-94f2-4513ac97f61f